[Event "DVM U14 2021"]
[Site "Willingen"]
[Date "2022.08.13"]
[Round "1"]
[White "Sidletskyi, Ivan"]
[Black "Eichhorn, Valentin"]
[Result "1-0"]
[ECO "B47"]
[WhiteElo "2075"]
[BlackElo "1506"]
[Annotator "NA RC"]
[PlyCount "59"]
[EventDate "2022.08.12"]
[EventType "team-tourn"]
[EventRounds "7"]
[EventCountry "GER"]
[SourceTitle "playchess.com"]
[Source "ChessBase"]
[SourceQuality "1"]
[TimeControl "40/5400+30:1800+30"]

1. e4 {[%emt 0:00:27]} c5 {[%emt 0:01:37]} 2. Nf3 {[%emt 0:00:26]} e6 {[%emt 0:01:06]} 3. d4 {[%emt 0:00:19]} cxd4 {[%emt 0:00:13]} 4. Nxd4 {[%emt 0:00:37]} Nc6 {[%emt 0:00:29]} 5. Nc3 {[%emt 0:00:30]} Qc7 {[%emt 0:00:58]} 6. g3 {[%emt 0:00:34]} a6 {[%emt 0:01:53]} 7. Bg2 {[%emt 0:01:13]} Nf6 {[%emt 0:01:16]} 8. O-O {[%emt 0:01:40]} Nxd4 {[%emt 0:00:20]} 9. Qxd4 {[%emt 0:00:12]} Bc5 {[%emt 0:02:41]} 10. Bf4 {[%emt 0:01:23]} d6 {[%emt 0:09:33]} 11. Qd2 {[%emt 0:05:36]} h6 {[%emt 0:03:45]} 12. Rad1 {[%emt 0:04:15]} e5 {[%emt 0:03:02]} 13. Be3 {[%emt 0:01:01]} Bb4 {[%emt 0:11:52]} 14. Nb5 {[%emt 0:02:01]} axb5 {[%emt 0:01:13]} 15. Qxb4 {[%emt 0:01:19]} Rxa2 {[%emt 0:12:28]} 16. Rxd6 {[%emt 0:14:08]} Rxb2 $16 {[%emt 0:00:38]} 17. Qxb2 {[%emt 0:01:37]} Qxd6 {[%emt 0:00:49]} 18. Qxb5+ {[%emt 0:02:18]} Bd7 {[%emt 0:02:57]} 19. Qa5 {[%emt 0:10:19]} Qa6 {[%emt 0:00:30]} 20. Qxe5+ {[%emt 0:01:15]} Qe6 {[%emt 0:02:45]} 21. Qc5 {[%emt 0:04:17]} Nxe4 {[%emt 0:00:44]} 22. Qb4 {[%emt 0:02:46]} Bc6 {[%emt 0:04:49]} 23. Ra1 {[%emt 0:03:13]} Kd7 {[%emt 0:02:13]} 24. Qd4+ {[%emt 0:05:55]} Qd5 {[%emt 0:00:31]} 25. Bxe4 {[%emt 0:00:31]} Qxd4 {[%emt 0:00:12]} 26. Bxc6+ {[%emt 0:00:34]} bxc6 {[%emt 0:00:05]} 27. Bxd4 {[%emt 0:00:32]} Rg8 {[%emt 0:01:11]} 28. Ra7+ {[%emt 0:00:15]} Ke6 {[%emt 0:00:25]} 29. c4 {[%emt 0:00:24]} f6 {[%emt 0:00:06]} 30. Bc5 {[%emt 0:01:18]} 1-0

[Event "DVM U14 2021"]
[Site "Willingen"]
[Date "2022.08.13"]
[Round "1"]
[White "Krüger, Arthur"]
[Black "Chugunov, Ivan"]
[Result "1-0"]
[ECO "B12"]
[WhiteElo "1996"]
[BlackElo "1630"]
[Annotator "TA"]
[PlyCount "91"]
[EventDate "2022.08.12"]
[EventType "team-tourn"]
[EventRounds "7"]
[EventCountry "GER"]
[SourceTitle "playchess.com"]
[Source "ChessBase"]
[SourceQuality "1"]
[TimeControl "40/5400+30:1800+30"]

{[%evp 11,91,17,35,24,37,1,47,43,72,0,0,-10,-12,-16,-4,-11,-12,-6,-16,-122,-120,-125,-108,-118,-115,-157,-147,-170,-181,-201,-156,-208,-164,-167,-175,-176,-170,-215,-150,-332,-94,-92,-68,-89,-56,-128,-127,-132,0,0,0,0,0,0,108,119,318,348,329,206,445,416,385,245,992,898,1011,902,5314,5314,4994,0,5181,5173,5157,5157,2382,4678,4678,1858,5310,5297]} 1. e4 {[%emt 0:00:05]} c6 {[%emt 0:00:19]} 2. d4 {[%emt 0:00:09]} d5 {[%emt 0:00:07]} 3. e5 {[%emt 0:00:05]} Bf5 {[%emt 0:00:09]} 4. Nf3 {[%emt 0:00:10]} e6 {[%emt 0:00:21]} 5. Be2 {[%emt 0:00:09]} Nd7 {[%emt 0:00:17]} 6. O-O {[%emt 0:00:28]} h6 {[%emt 0:00:19]} 7. a4 {[%emt 0:04:08] B12: Caro-Kann: Advance Variation.} Ne7 {[%emt 0:02:05]} 8. Nbd2 {[%emt 0:02:23]} Ng6 {[%emt 0:08:54] 8...a5 is a critical line.} (8... c5) (8... c5 $11 {might be stronger.}) 9. Nb3 $14 {[%emt 0:03:00] White is slightly better.} Be7 {[%emt 0:02:15] [#]} 10. Re1 $146 {[%emt 0:04:09]} (10. Ne1) (10. Ne1 $16) ({Predecessor:} 10. a5 O-O 11. Ne1 Nh8 12. f4 Bh7 13. Bd3 f5 14. c4 a6 15. Nf3 g5 16. cxd5 cxd5 {1-0 (43) Rasulov,V (2478)-Ezat,M (2417) Chess.com INT 2021}) 10... O-O $11 {[%emt 0:07:20][%cal Bh8f8,Bf8f6,Bf6f5][%mdl 32]} 11. Bd3 {[%emt 0:06:00]} Bxd3 {[%emt 0:01:41]} 12. Qxd3 {[%emt 0:00:19]} Qe8 {[%emt 0:02:16]} 13. Qe2 {[%emt 0:11:02]} f6 {[%emt 0:05:43]} 14. exf6 {[%emt 0:04:36]} Rxf6 {[%emt 0:01:09]} 15. Ne5 {[%emt 0:03:54]} (15. Be3) (15. Be3 $11) 15... Ndxe5 $1 $17 {[%emt 0:02:53]} 16. dxe5 {[%emt 0:00:54]} Rf5 {[%emt 0:00:53]} 17. Be3 {[%emt 0:12:02]} Rxe5 {[%emt 0:02:02]} (17... Nxe5 $6 18. Nd4 Rf6 19. Bxh6 $1 Rxh6 20. Qxe5 $11) 18. Qd2 {[%emt 0:06:19]} Qf7 {[%emt 0:02:36]} 19. Bc5 {[%emt 0:03:15]} Bg5 {[%emt 0:03:07]} 20. Qc3 {[%emt 0:02:27]} Bf6 {[%emt 0:15:27] Hoping for ...Rg5.} 21. Bd4 {[%emt 0:01:17]} (21. Rxe5 $17 Bxe5 22. Bd4 Bxd4 23. Nxd4) 21... Rf5 {[%emt 0:02:47] And now ...e5 would win.} 22. Bxf6 {[%emt 0:02:05]} Rxf6 {[%emt 0:00:31]} ({Stronger than} 22... Qxf6 23. Qxf6 Rxf6 24. f3 $17 (24. Nc5 e5 $17)) 23. f3 {[%emt 0:02:25]} Rf8 {[%emt 0:01:42]} 24. a5 {[%emt 0:01:05]} Nh4 {[%emt 0:06:08]} 25. Kh1 $2 {[%emt 0:06:14] [#]} (25. Re2 $17) 25... Qh5 $2 {[%emt 0:18:18]} (25... Nxg2 $1 $19 {[%mdl 512]} 26. Kxg2 Rxf3) 26. Re5 {[%emt 0:02:03]} Qg6 {[%emt 0:04:12][%csl Gh4][%cal Rg6g2]} 27. Rg1 {[%emt 0:02:03][%cal Oa5a6]} Rf5 {[%emt 0:01:05]} 28. Nc5 {[%emt 0:01:32]} ({White should play} 28. Rxf5 $15 Qxf5 29. Qc5) 28... Rxe5 {[%emt 0:02:56]} 29. Qxe5 {[%emt 0:00:19] [#]} Qxc2 {[%emt 0:00:41]} (29... Rxf3 $1 $17 {[%mdl 512]} 30. Qe1 {[#]} Qf6 $1) 30. Nxe6 $11 {[%emt 0:02:48][%csl Ge6][%cal Re5g7]} Rf7 {[%emt 0:00:34]} 31. Qb8+ {[%emt 0:00:28]} Kh7 {[%emt 0:01:14]} 32. Nf8+ {[%emt 0:00:24]} Rxf8 {[%emt 0:00:20]} 33. Qxf8 {[%emt 0:00:11][%mdl 4096] Endgame KQR-KQN} d4 $2 {[%emt 0:00:25]} (33... Ng6 $16 34. Qb4 Ne5) 34. Qf4 $18 {[%emt 0:04:35][%csl LRd4,LRh4]} Nf5 {[%emt 0:02:32]} 35. g4 {[%emt 0:02:39]} Ne3 {[%emt 0:00:39]} (35... Nh4 36. g5 Qd3) 36. Qxd4 {[%emt 0:00:54]} Qf2 {[%emt 0:00:29]} 37. Qf4 {[%emt 0:02:23]} Nf1 $2 {[%emt 0:00:57]} (37... Nd5 38. Qf5+ Kg8 39. Qe6+ Kh8 40. Qc8+ Kh7 41. Qf5+ Kg8) 38. Qe4+ {[%emt 0:03:09]} Kh8 {[%emt 0:00:31]} 39. Rg2 {[%emt 0:00:37]} Qc5 {[%emt 0:01:31]} 40. Qe8+ {[%emt 0:04:51]} Kh7 {[%emt 0:00:15]} 41. Qe4+ {[%emt 0:30:20]} Kh8 {[%emt 0:30:06]} 42. g5 {[%emt 0:00:00] Intending Qe8+ and mate. White is clearly winning.} hxg5 {[%emt 0:00:00]} 43. Qe8+ {[%emt 0:00:00]} Kh7 {[%emt 0:00:00]} 44. Qh5+ {[%emt 0:00:00]} Kg8 {[%emt 0:00:00]} 45. Rxg5 {[%emt 0:00:00]} (45. Re2 $142 Ne3 46. Qe8+ Qf8 47. Qxe3) 45... Qf8 {[%emt 0:00:00]} 46. Re5 {[%emt 0:00:00] Weighted Error Value: White=0.52/Black=0.52} 1-0

[Event "DVM U14 2021"]
[Site "Willingen"]
[Date "2022.08.13"]
[Round "1"]
[White "Schwartz, Oliver"]
[Black "Fuhrmann, Bahne"]
[Result "*"]
[ECO "D85"]
[WhiteElo "1872"]
[BlackElo "1973"]
[Annotator "TA"]
[PlyCount "37"]
[EventDate "2022.08.12"]
[EventType "team-tourn"]
[EventRounds "7"]
[EventCountry "GER"]
[SourceTitle "playchess.com"]
[Source "ChessBase"]
[SourceQuality "1"]
[TimeControl "40/5400+30:1800+30"]

{[%evp 25,37,-29,-20,-18,-7,0,0,-18,-25,-62,7,0,0,-9]} 1. d4 {[%emt 0:00:03]} Nf6 {[%emt 0:00:00]} 2. c4 {[%emt 0:00:02]} g6 {[%emt 0:00:00]} 3. Nc3 {[%emt 0:00:02]} d5 {[%emt 0:00:57]} 4. cxd5 {[%emt 0:00:05]} Nxd5 {[%emt 0:00:05]} 5. e4 {[%emt 0:00:04]} Nxc3 {[%emt 0:00:05]} 6. bxc3 {[%emt 0:00:05]} Bg7 {[%emt 0:01:53]} 7. Nf3 {[%emt 0:00:48]} c5 {[%emt 0:01:02]} 8. Be2 {[%emt 0:00:07]} Nc6 {[%emt 0:02:03]} 9. d5 {[%emt 0:00:08]} Bxc3+ {[%emt 0:00:04]} 10. Bd2 {[%emt 0:00:06]} Bxa1 {[%emt 0:00:05]} 11. Qxa1 {[%emt 0:00:04]} Nd4 {[%emt 0:00:05]} 12. Nxd4 {[%emt 0:00:03]} cxd4 {[%emt 0:00:11]} 13. Qxd4 {[%emt 0:00:08]} O-O {[%emt 0:00:58]} 14. O-O {[%emt 0:00:23] D85: Exchange Grünfeld: Unusual White 7th moves and lines with 7 Nf3.} Qb6 {[%emt 0:04:05]} 15. Qc3 {[%emt 0:00:20] 15.Qc3 has become a bit dusty these days.} Bd7 {[%emt 0:11:44] aiming for ...Rfc8.} 16. Be3 {[%emt 0:18:19] [#]} (16. Bh6 $5 {[%cal Rc3g7]} f6 17. Bxf8 Kxf8 18. g3 $11) 16... Qf6 $146 {[%emt 0:10:06]} ({Predecessor:} 16... Qd6 17. Bh6 f6 18. Bxf8 Rxf8 19. Qb3 b6 20. Bb5 Bxb5 21. Qxb5 Rc8 22. g3 Rc5 {0-1 (56) Iljin,T (2273)-Chirila,I (2536) Chess.com INT 2020}) 17. Bd4 {[%emt 0:12:55] This bishop pair is nice.} (17. e5 Qh4 18. Qb2 (18. Qc7 Qa4)) 17... Qh4 {[%emt 0:14:18]} (17... Qf4) (17... Qf4 $15 18. Bd3 Rfc8) 18. f4 {[%emt 0:08:47]} Rac8 {[%emt 0:11:59] Against Qc7} 19. Qe3 {Weighted Error Value: White=0.11 (very precise) /Black=0.19 (very precise)} *

[Event "DVM U14 2021"]
[Site "Willingen"]
[Date "2022.08.13"]
[Round "1"]
[White "Bungarten, Jona"]
[Black "Bongardt, Livius"]
[Result "1/2-1/2"]
[ECO "C56"]
[WhiteElo "1834"]
[BlackElo "1756"]
[Annotator "NA RC COMBH"]
[PlyCount "67"]
[EventDate "2022.08.12"]
[EventType "team-tourn"]
[EventRounds "7"]
[EventCountry "GER"]
[SourceTitle "playchess.com"]
[Source "ChessBase"]
[SourceQuality "1"]
[TimeControl "40/5400+30:1800+30"]

1. e4 {[%emt 0:00:04]} e5 {[%emt 0:00:00]} 2. Nf3 {[%emt 0:00:04]} Nc6 {[%emt 0:00:00]} 3. Bc4 {[%emt 0:00:04]} Nf6 {[%emt 0:01:17]} 4. d4 {[%emt 0:00:07]} exd4 {[%emt 0:00:20]} 5. O-O {[%emt 0:00:31]} Bc5 {[%emt 0:00:24]} 6. e5 {[%emt 0:00:08]} d5 {[%emt 0:00:13]} 7. exf6 {[%emt 0:00:04]} dxc4 {[%emt 0:01:16]} 8. Re1+ {[%emt 0:01:17]} Be6 {[%emt 0:00:50]} 9. fxg7 {[%emt 0:00:12]} Rg8 {[%emt 0:00:14]} 10. Bg5 {[%emt 0:55:56]} Be7 {[%emt 0:00:11]} 11. Bxe7 {[%emt 0:00:21]} Kxe7 {[%emt 0:00:14]} 12. Re4 $14 {[%emt 0:15:40]} d3 {[%emt 0:11:12]} 13. Nc3 {[%emt 0:11:38]} Rxg7 {[%emt 0:02:04]} 14. cxd3 {[%emt 0:01:52]} Qxd3 {[%emt 0:05:24]} 15. Nd5+ {[%emt 0:09:29]} Kf8 {[%emt 0:01:30]} 16. Qxd3 {[%emt 0:00:09]} cxd3 {[%emt 0:00:07]} 17. Nxc7 {[%emt 0:00:50]} Bf5 {[%emt 0:10:39]} 18. Rf4 {[%emt 0:00:28]} Rc8 {[%emt 0:00:23]} 19. Rxf5 {[%emt 0:00:06]} Rxc7 {[%emt 0:02:52]} 20. Rd1 {[%emt 0:00:49]} Rd7 {[%emt 0:06:05]} 21. Ne1 {[%emt 0:00:40]} d2 {[%emt 0:00:34]} 22. Nf3 {[%emt 0:00:25]} Nd4 {[%emt 0:05:12]} 23. Nxd4 {[%emt 0:00:08]} Rxd4 {[%emt 0:00:48]} 24. Rc5 {[%emt 0:00:52]} Re4 {[%emt 0:04:30]} 25. Kf1 {[%emt 0:00:29]} Re1+ {[%emt 0:00:05]} 26. Rxe1 {[%emt 0:00:03]} dxe1=Q+ {[%emt 0:00:04]} 27. Kxe1 {[%emt 0:00:48]} Rxg2 {[%emt 0:02:03]} 28. Rc7 {[%emt 0:00:43]} Rg1+ {[%emt 0:00:43]} 29. Ke2 {[%emt 0:00:29]} Ra1 {[%emt 0:00:13]} 30. a3 {[%emt 0:00:31]} b5 {[%emt 0:00:27]} 31. Rxa7 {[%emt 0:00:17]} Ra2 {[%emt 0:03:31]} 32. Ra5 {[%emt 0:00:42]} Rxb2+ {[%emt 0:00:10]} 33. Ke3 {[%emt 0:00:31]} b4 {[%emt 0:00:22]} 34. axb4 {[%emt 0:00:47]} 1/2-1/2

[Event "DVM U14 2021"]
[Site "Willingen"]
[Date "2022.08.13"]
[Round "1"]
[White "Prinzen, Siri Marleen"]
[Black "Bolz, Jannis"]
[Result "0-1"]
[ECO "D93"]
[WhiteElo "1801"]
[BlackElo "1616"]
[Annotator "NA RC COMBH"]
[PlyCount "118"]
[EventDate "2022.08.12"]
[EventType "team-tourn"]
[EventRounds "7"]
[EventCountry "GER"]
[SourceTitle "playchess.com"]
[Source "ChessBase"]
[SourceQuality "1"]
[TimeControl "40/5400+30:1800+30"]

1. d4 {[%emt 0:00:02]} Nf6 {[%emt 0:00:05]} 2. Bf4 {[%emt 0:00:06]} g6 {[%emt 0:00:11]} 3. c4 {[%emt 0:00:13]} Bg7 {[%emt 0:00:09]} 4. Nf3 {[%emt 0:00:48]} O-O {[%emt 0:00:53]} 5. Nc3 {[%emt 0:01:00]} d5 {[%emt 0:00:06]} 6. e3 {[%emt 0:02:00]} e6 {[%emt 0:14:16]} (6... c5 $11 {might be stronger.}) 7. Be2 $11 {[%emt 0:02:48]} c5 {[%emt 0:04:07]} 8. h3 {[%emt 0:10:46]} a6 {[%emt 0:02:06]} 9. O-O {[%emt 0:06:16]} Nc6 {[%emt 0:09:54]} 10. Ne5 {[%emt 0:18:12]} ({Better is} 10. dxc5 $16 Re8 11. cxd5 Nxd5 12. Nxd5 exd5 13. Bd6) 10... cxd4 {[%emt 0:01:35]} 11. exd4 {[%emt 0:03:33]} Nd7 {[%emt 0:00:51]} 12. Nxc6 {[%emt 0:08:47]} bxc6 {[%emt 0:00:07]} 13. cxd5 {[%emt 0:05:51]} cxd5 {[%emt 0:00:52]} 14. Na4 {[%emt 0:02:24]} e5 {[%emt 0:05:50]} 15. dxe5 {[%emt 0:02:53]} Nxe5 {[%emt 0:00:35]} 16. Rc1 {[%emt 0:02:25]} Be6 {[%emt 0:21:07]} 17. Re1 {[%emt 0:03:53]} Nd7 {[%emt 0:11:40]} 18. Bf3 {[%emt 0:03:16]} Qa5 {[%emt 0:09:08]} 19. a3 {[%emt 0:03:34]} Rac8 {[%emt 0:01:39]} 20. Rxc8 {[%emt 0:03:08]} Rxc8 {[%emt 0:00:05]} 21. Bd6 {[%emt 0:02:33]} d4 {[%emt 0:05:27]} 22. b4 {[%emt 0:02:43]} Qb5 {[%emt 0:03:05]} 23. Nc5 {[%emt 0:01:50]} Nxc5 {[%emt 0:00:56]} 24. Bxc5 {[%emt 0:00:06]} Rd8 {[%emt 0:02:05]} 25. Re2 {[%emt 0:02:11]} Bc4 {[%emt 0:01:41]} 26. Rd2 {[%emt 0:01:46]} d3 {[%emt 0:00:26]} 27. a4 {[%emt 0:05:01]} Qd7 {[%emt 0:00:39]} 28. Qc1 {[%emt 0:01:55]} Qe6 {[%emt 0:01:04]} 29. Rd1 {[%emt 0:01:22]} Bb3 {[%emt 0:00:28]} 30. Rf1 {[%emt 0:01:42]} d2 {[%emt 0:00:21]} 31. Qb1 {[%emt 0:00:36]} Bxa4 {[%emt 0:01:13]} 32. Kh1 {[%emt 0:01:21]} Qd7 {[%emt 0:00:08]} 33. Bd1 {[%emt 0:00:14]} Bb5 {[%emt 0:01:35]} 34. Rg1 {[%emt 0:00:19]} Bd4 {[%emt 0:00:12]} 35. Bg4 {[%emt 0:00:44]} Qd5 {[%emt 0:00:56]} 36. Qc2 {[%emt 0:01:08]} Bxc5 {[%emt 0:00:29]} 37. bxc5 {[%emt 0:00:11]} Qd4 {[%emt 0:01:55]} 38. c6 {[%emt 0:00:49]} f5 {[%emt 0:00:30]} 39. Bf3 {[%emt 0:00:54]} Ba4 {[%emt 0:00:45]} 40. Qa2+ {[%emt 0:00:10]} Kg7 {[%emt 0:00:06]} 41. Bd1 {[%emt 0:01:13]} Bxc6 {[%emt 0:05:19]} 42. Qxa6 {[%emt 0:01:15]} Bd5 {[%emt 0:06:57]} 43. Qa3 {[%emt 0:02:49]} Re8 {[%emt 0:01:57]} 44. Qa5 {[%emt 0:04:30]} Bf7 {[%emt 0:02:57]} 45. Ba4 {[%emt 0:07:07]} Re1 {[%emt 0:05:23]} 46. Rxe1 {[%emt 0:03:00]} dxe1=Q+ {[%emt 0:00:12]} 47. Qxe1 {[%emt 0:00:05]} Qxa4 {[%emt 0:00:07]} 48. Qe5+ {[%emt 0:01:23]} Kg8 {[%emt 0:00:06]} 49. Kh2 {[%emt 0:01:21]} Qe8 {[%emt 0:02:49]} 50. Qd6 {[%emt 0:00:41]} Qe6 {[%emt 0:00:16]} 51. Qd8+ {[%emt 0:01:13]} Kg7 {[%emt 0:00:08]} 52. Qd4+ {[%emt 0:00:57]} Qf6 {[%emt 0:00:07]} 53. Qf4 {[%emt 0:01:03]} g5 {[%emt 0:00:12]} 54. Qg3 {[%emt 0:00:56]} h6 {[%emt 0:04:59]} 55. Qc7 {[%emt 0:03:51]} Kg6 {[%emt 0:02:02]} 56. f4 {[%emt 0:02:47]} g4 {[%emt 0:01:09]} 57. Qc1 {[%emt 0:01:08]} Be6 {[%emt 0:00:51]} 58. Qe3 {[%emt 0:00:46]} h5 {[%emt 0:00:26]} 59. Qf2 {[%emt 0:02:10]} h4 {[%emt 0:02:25]} 0-1

[Event "DVM U14 2021"]
[Site "Willingen"]
[Date "2022.08.13"]
[Round "1"]
[White "Braeutigam, Katerina"]
[Black "Hoffmann, Kay"]
[Result "0-1"]
[ECO "B01"]
[WhiteElo "1781"]
[BlackElo "1653"]
[Annotator "NA RC COMBH"]
[PlyCount "56"]
[EventDate "2022.08.12"]
[EventType "team-tourn"]
[EventRounds "7"]
[EventCountry "GER"]
[SourceTitle "playchess.com"]
[Source "ChessBase"]
[SourceQuality "1"]
[TimeControl "40/5400+30:1800+30"]

1. e4 {[%emt 0:00:01]} d5 {[%emt 0:00:06]} 2. exd5 {[%emt 0:00:04]} Qxd5 {[%emt 0:00:05]} 3. Nc3 {[%emt 0:00:07]} Qd6 {[%emt 0:00:04]} 4. d4 {[%emt 0:01:37]} Nf6 {[%emt 0:00:09]} 5. Nf3 {[%emt 0:01:05]} a6 {[%emt 0:00:10]} 6. Bc4 {[%emt 0:06:50]} Bg4 {[%emt 0:04:31]} 7. h3 {[%emt 0:06:25]} Bh5 {[%emt 0:00:23]} 8. g4 {[%emt 0:17:24]} Bg6 {[%emt 0:00:14]} 9. Ne5 {[%emt 0:02:00]} Nc6 {[%emt 0:00:56]} 10. Nxg6 {[%emt 0:06:38]} hxg6 {[%emt 0:00:24]} 11. Be3 {[%emt 0:02:06]} Qb4 {[%emt 0:03:45]} 12. Bb3 {[%emt 0:14:11]} e6 {[%emt 0:08:48]} 13. a3 {[%emt 0:04:29]} Qd6 {[%emt 0:00:29]} 14. Qf3 {[%emt 0:07:03]} O-O-O {[%emt 0:05:32]} 15. g5 {[%emt 0:05:28]} Nh7 {[%emt 0:05:44]} 16. Qxf7 {[%emt 0:01:43]} Nxd4 {[%emt 0:01:57]} 17. Bxd4 {[%emt 0:03:56]} Nxg5 {[%emt 0:01:55]} 18. Bxe6+ {[%emt 0:06:39]} Kb8 {[%emt 0:05:24]} 19. Qxg6 {[%emt 0:02:30]} Nf3+ {[%emt 0:00:06]} 20. Kf1 {[%emt 0:01:26]} Qxd4 {[%emt 0:00:42]} 21. Qg4 {[%emt 0:08:37]} Nd2+ {[%emt 0:01:16]} 22. Kg2 {[%emt 0:00:36]} Bc5 {[%emt 0:02:55]} 23. Qxd4 {[%emt 0:00:21]} Bxd4 {[%emt 0:00:07]} 24. Rad1 {[%emt 0:00:31]} Bc5 {[%emt 0:06:14]} 25. Rhe1 {[%emt 0:00:35]} Rd6 {[%emt 0:11:45]} 26. Bd5 {[%emt 0:00:34]} Rg6+ {[%emt 0:00:21]} 27. Kh2 {[%emt 0:00:32]} Bd6+ {[%emt 0:00:04]} 28. f4 {[%emt 0:00:30]} Bxf4+ {[%emt 0:00:08]} 0-1

[Event "DVM U14 2021"]
[Site "Willingen"]
[Date "2022.08.13"]
[Round "1"]
[White "Nitsche, Nikolai"]
[Black "Ehrig, Leon Chris"]
[Result "1/2-1/2"]
[ECO "A14"]
[WhiteElo "1764"]
[BlackElo "1832"]
[Annotator "NA RC COMBH"]
[PlyCount "52"]
[EventDate "2022.08.12"]
[EventType "team-tourn"]
[EventRounds "7"]
[EventCountry "GER"]
[SourceTitle "playchess.com"]
[Source "ChessBase"]
[SourceQuality "1"]
[TimeControl "40/5400+30:1800+30"]

1. g3 {[%emt 0:00:39]} Nf6 {[%emt 0:00:00]} 2. Bg2 {[%emt 0:00:21]} d5 {[%emt 0:00:00]} 3. Nf3 {[%emt 0:02:15]} e6 {[%emt 0:00:07]} 4. O-O {[%emt 0:00:13]} Be7 {[%emt 0:01:02]} 5. c4 {[%emt 0:03:41]} O-O {[%emt 0:02:17]} 6. d3 {[%emt 0:04:48]} c5 {[%emt 0:04:05]} 7. cxd5 {[%emt 0:00:30]} exd5 {[%emt 0:00:49]} 8. Re1 {[%emt 0:01:19]} (8. d4 $142) 8... Nc6 {[%emt 0:11:52]} 9. Bf4 {[%emt 0:08:04]} Qb6 {[%emt 0:10:38]} 10. Qc1 {[%emt 0:08:07]} c4 {[%emt 0:04:22]} ({Better is} 10... h6 $15) 11. dxc4 {[%emt 0:03:08]} Bc5 {[%emt 0:02:18]} (11... Be6 $11) 12. e3 {[%emt 0:10:14]} Nb4 $16 {[%emt 0:10:00]} 13. Rd1 {[%emt 0:08:00]} Bf5 {[%emt 0:02:18]} 14. Ne1 {[%emt 0:05:17]} dxc4 {[%emt 0:08:05]} 15. Qxc4 {[%emt 0:01:42]} Rac8 {[%emt 0:00:47]} 16. Qe2 {[%emt 0:04:55]} Nc2 {[%emt 0:10:23]} 17. Nxc2 {[%emt 0:00:16]} Qxb2 {[%emt 0:01:23]} 18. Nd2 {[%emt 0:09:17]} Qxc2 {[%emt 0:04:02]} 19. Bxb7 {[%emt 0:17:10]} Ba3 {[%emt 0:03:31]} 20. Bxc8 {[%emt 0:00:36]} Rxc8 {[%emt 0:06:18]} 21. Qb5 {[%emt 0:05:32]} h6 {[%emt 0:08:08]} 22. Be5 {[%emt 0:03:53]} Ng4 {[%emt 0:01:16]} 23. Bd4 {[%emt 0:00:41]} Be6 {[%emt 0:05:33]} 24. Qb1 {[%emt 0:00:59]} Qc6 {[%emt 0:00:09]} 25. Qe4 {[%emt 0:00:22]} Qd7 {[%emt 0:01:50]} 26. h3 {[%emt 0:00:59]} Bf5 {[%emt 0:01:55]} 1/2-1/2

[Event "DVM U14 2021"]
[Site "Willingen"]
[Date "2022.08.13"]
[Round "1"]
[White "Englert, Luca"]
[Black "Helmbrecht, Paul"]
[Result "1-0"]
[ECO "B13"]
[WhiteElo "1741"]
[BlackElo "1661"]
[Annotator "NA RC COMBH"]
[PlyCount "105"]
[EventDate "2022.08.12"]
[EventType "team-tourn"]
[EventRounds "7"]
[EventCountry "GER"]
[SourceTitle "playchess.com"]
[Source "ChessBase"]
[SourceQuality "1"]
[TimeControl "40/5400+30:1800+30"]

1. e4 {[%emt 0:00:08]} c6 {[%emt 0:00:00]} 2. d4 {[%emt 0:00:03]} d5 {[%emt 0:00:00]} 3. exd5 {[%emt 0:00:05]} cxd5 {[%emt 0:00:00]} 4. Bd3 {[%emt 0:00:11]} Nf6 {[%emt 0:00:02]} 5. Bf4 {[%emt 0:00:11]} Nc6 {[%emt 0:00:07]} 6. c3 {[%emt 0:00:35]} g6 {[%emt 0:00:50]} 7. Nd2 {[%emt 0:00:44]} Bg7 {[%emt 0:02:06]} 8. h3 {[%emt 0:00:39]} Be6 {[%emt 0:00:35]} 9. Ngf3 {[%emt 0:00:12]} Rc8 {[%emt 0:01:13]} 10. Nb3 {[%emt 0:08:34]} Bf5 {[%emt 0:12:21]} 11. Bxf5 {[%emt 0:00:11]} gxf5 {[%emt 0:06:35]} 12. Qd3 {[%emt 0:07:44]} Ne4 {[%emt 0:05:33]} 13. Qb5 {[%emt 0:04:20]} Qd7 {[%emt 0:08:09]} 14. Ng5 {[%emt 0:04:22]} Ne5 {[%emt 0:10:29]} 15. Qe2 {[%emt 0:02:23]} Ng6 {[%emt 0:11:46]} 16. Nxe4 {[%emt 0:00:06]} fxe4 {[%emt 0:01:50]} 17. Bd2 {[%emt 0:12:41]} O-O {[%emt 0:01:12]} 18. h4 {[%emt 0:08:59]} e5 {[%emt 0:05:34]} 19. Nc5 {[%emt 0:02:03]} Qc6 {[%emt 0:00:33]} 20. h5 {[%emt 0:00:40]} Nf4 {[%emt 0:09:45]} 21. Bxf4 {[%emt 0:00:07]} exf4 {[%emt 0:00:10]} 22. Qg4 {[%emt 0:02:12]} Qh6 {[%emt 0:03:45]} 23. Rh4 {[%emt 0:06:46]} f3 {[%emt 0:00:54]} 24. gxf3 {[%emt 0:00:16]} f5 {[%emt 0:01:41]} 25. Qf4 {[%emt 0:00:25]} Qxf4 {[%emt 0:00:05]} 26. Rxf4 {[%emt 0:00:05]} Bh6 {[%emt 0:00:05]} 27. Rh4 {[%emt 0:00:11]} exf3 {[%emt 0:00:21]} 28. Rh3 {[%emt 0:01:49]} Rfe8+ {[%emt 0:00:06]} 29. Kf1 {[%emt 0:06:26]} Re2 {[%emt 0:03:01]} 30. Rb1 {[%emt 0:02:40]} Rce8 {[%emt 0:01:54]} 31. Nd7 {[%emt 0:06:03]} Bg7 {[%emt 0:02:10]} 32. Rxf3 {[%emt 0:00:34]} Rc2 {[%emt 0:00:32]} 33. h6 {[%emt 0:00:51]} Re7 {[%emt 0:02:20]} 34. hxg7 {[%emt 0:00:07]} Rxd7 {[%emt 0:00:17]} 35. Rxf5 {[%emt 0:00:13]} Rf7 {[%emt 0:00:47]} 36. Rxf7 {[%emt 0:00:30]} Kxf7 {[%emt 0:00:45]} 37. Kg2 {[%emt 0:00:07]} Kxg7 {[%emt 0:01:51]} 38. Kf3 {[%emt 0:00:14]} Kf6 {[%emt 0:03:24]} 39. a4 {[%emt 0:00:49]} h5 {[%emt 0:03:25]} 40. Kg3 {[%emt 0:01:09]} Kf5 {[%emt 0:00:12]} 41. Re1 {[%emt 0:33:46]} Rxb2 {[%emt 0:30:06]} 42. Re5+ {[%emt 0:00:26]} Kg6 {[%emt 0:00:10]} 43. Rxd5 {[%emt 0:00:17]} Ra2 {[%emt 0:01:05]} 44. Rd7 {[%emt 0:01:39]} Rxa4 {[%emt 0:00:09]} 45. Rxb7 {[%emt 0:00:05]} Rc4 {[%emt 0:03:25]} 46. Rb3 {[%emt 0:02:54]} Kg5 {[%emt 0:00:39]} 47. Rb5+ {[%emt 0:00:07]} Kg6 {[%emt 0:00:00]} 48. Rc5 {[%emt 0:00:00]} Rxc5 {[%emt 0:00:00]} 49. dxc5 {[%emt 0:00:00]} h4+ {[%emt 0:00:00]} 50. Kxh4 {[%emt 0:00:00]} Kf5 {[%emt 0:00:00]} 51. f4 {[%emt 0:00:00]} Ke6 {[%emt 0:00:00]} 52. c6 {[%emt 0:00:00]} Kd6 {[%emt 0:00:00]} 53. f5 {[%emt 3:39:23]} 1-0